bitfinex-derivatives/quotes_BTCF0:USTF0_20241210
["timestamp","ask_amount","ask_price","bid_price","bid_amount"]
[1733850274269,0.00099,95856.0,95855.0,6e-05]
[1733850274561,0.36179,95856.0,95855.0,6e-05]
[1733850275857,0.052153,95838.0,95834.0,6e-05]
[1733850276165,0.66179,95856.0,95818.0,0.18490957]
[1733850276166,0.3608,95835.0,95818.0,0.18490957]
[1733850276468,0.3608,95819.0,95802.0,0.30541076]
[1733850276768,0.36464,95803.0,95802.0,0.30541076]
[1733850276965,0.36464,95803.0,95801.0,0.0006]
[1733850277172,0.36464,95803.0,95802.0,9.936e-05]
[1733850277966,0.72544,95803.0,95802.0,9.936e-05]
[1733850278268,0.052176,95796.0,95795.0,0.00576925]
[1733850278459,0.29161269,95800.0,95772.0,0.052188]
[1733850278768,0.3608,95774.0,95756.0,0.37648]
[1733850279159,0.3608,95774.0,95752.0,0.4291]
[1733850279160,0.3608,95774.0,95773.0,0.47933319]
[1733850279554,0.3608,95774.0,95757.0,0.02099507]
[1733850279759,0.3608,95758.0,95757.0,0.02099507]
[1733850279961,0.3608,95758.0,95746.0,0.2466024]
[1733850279962,0.72166,95758.0,95746.0,0.15785573]
[1733850280261,0.72166,95758.0,95734.0,0.43176153]
[1733850280262,0.052216,95721.0,95720.0,0.43152138]
[1733850280460,0.052219,95717.0,95716.0,0.05318082]
[1733850280756,0.052219,95717.0,95707.0,0.29161269]
[1733850280757,0.36086,95717.0,95707.0,0.29161269]
[1733850280961,0.36086,95717.0,95713.0,0.18868296]
[1733850281162,0.36086,95717.0,95716.0,0.18868296]
[1733850281361,0.00010708,95720.0,95716.0,0.18868296]
[1733850281561,0.00010708,95720.0,95719.0,0.18868296]
[1733850281958,0.10251226,95722.0,95721.0,0.18868296]
[1733850282166,0.3608,95749.0,95724.0,0.052214]
[1733850282359,0.3608,95746.0,95734.0,0.18868296]
[1733850282562,0.3608,95766.0,95741.0,0.052205]
[1733850282765,0.3608,95758.0,95751.0,0.18868296]
[1733850282960,0.3608,95758.0,95751.0,0.18887779]
[1733850283462,0.00011615,95765.0,95751.0,0.18887779]
[1733850284369,0.27776482,95752.0,95751.0,0.00019483]
[1733850284871,0.052216,95722.0,95700.0,0.4608]
[1733850285067,0.413016,95722.0,95700.0,0.1]
[1733850285263,0.713016,95722.0,95700.0,0.1]
[1733850285463,0.052227,95701.0,95700.0,0.1]
[1733850285675,0.773827,95701.0,95700.0,0.1]
[1733850285876,1.07401394,95701.0,95700.0,0.1]
[1733850286882,0.36098694,95701.0,95692.0,0.00013221]
[1733850287064,0.36098694,95701.0,95694.0,0.18868296]
[1733850287262,0.36092694,95701.0,95694.0,0.18868296]
[1733850287459,0.36092694,95701.0,95695.0,0.052231]
[1733850287774,0.36092694,95701.0,95700.0,0.18868296]
[1733850288068,0.0207894,95742.0,95700.0,0.3608]
[1733850288270,0.052219,95717.0,95716.0,0.3608]
[1733850288462,0.3608,95738.0,95714.0,0.3608]
[1733850288663,0.3608,95730.0,95714.0,0.3608]
[1733850288873,0.6608,95738.0,95724.0,0.3608]
[1733850289067,0.00010146,95729.0,95724.0,0.3608]
[1733850289268,0.052216,95721.0,95720.0,0.39247357]
[1733850289772,6e-05,95721.0,95714.0,0.36136]
[1733850289973,0.05222,95716.0,95714.0,0.3608]
[1733850290162,0.05222,95716.0,95703.0,0.3608]
[1733850290163,6e-05,95715.0,95703.0,0.3608]
[1733850290364,0.052231,95694.0,95692.0,0.00013221]
[1733850290773,6e-05,95693.0,95692.0,0.00013221]
[1733850291372,0.30006,95693.0,95692.0,0.00013221]
[1733850292874,0.30006,95693.0,95635.0,0.01568]
[1733850292875,0.30006,95693.0,95655.0,0.052252]
[1733850293080,0.3608,95668.0,95644.0,0.052258]
[1733850293280,0.3608,95668.0,95645.0,0.18868296]
[1733850293586,0.3,95668.0,95641.0,0.0528601]
[1733850293765,0.3,95668.0,95645.0,0.18868296]
[1733850293964,0.3,95668.0,95643.0,0.18868296]
[1733850293965,0.0001129,95650.0,95643.0,0.18868296]
[1733850294168,0.0001129,95650.0,95640.0,0.3608]
[1733850294368,6e-05,95644.0,95643.0,0.052259]
[1733850294579,6e-05,95644.0,95643.0,0.413059]
[1733850294882,6e-05,95644.0,95643.0,0.54948296]
[1733850298070,0.3608,95707.0,95643.0,0.6608]
[1733850298269,0.3608,95715.0,95695.0,0.3608]
[1733850298469,0.05223,95696.0,95695.0,0.3608]
[1733850298674,0.05223,95696.0,95644.0,1.0427]
[1733850298675,0.052236,95684.0,95678.0,0.3608]
[1733850298980,0.052238,95679.0,95678.0,0.3608]
[1733850299280,0.052298,95679.0,95678.0,0.3608]
[1733850300284,0.052298,95679.0,95678.0,0.54931006]
[1733850300484,6e-05,95679.0,95678.0,0.54931006]
[1733850301173,0.3608,95722.0,95678.0,0.6608]
[1733850301174,0.05222,95713.0,95678.0,0.6608]
[1733850301368,0.052231,95694.0,95691.0,0.54931006]
[1733850301771,0.052231,95694.0,95693.0,0.18851006]
[1733850301975,0.052231,95694.0,95681.0,0.3608]
[1733850302176,0.052231,95694.0,95671.0,0.3608]
[1733850302177,0.05224,95676.0,95675.0,7.346e-05]
[1733850302575,0.35224,95676.0,95675.0,7.346e-05]
[1733850302971,0.052252,95655.0,95654.0,0.3608]
[1733850303480,0.052312,95655.0,95654.0,0.3608]
[1733850303684,0.052256,95647.0,95646.0,0.3608]
[1733850303984,0.052316,95647.0,95646.0,0.36093026]
[1733850304181,0.052316,95647.0,95646.0,0.00013026]
[1733850305981,0.052316,95647.0,95625.0,0.02084898]
[1733850305982,0.66086,95647.0,95613.0,0.00056]
[1733850306180,0.052274,95614.0,95613.0,0.00056]
[1733850306385,0.052281,95601.0,95587.0,0.3608]
[1733850306683,0.052341,95601.0,95587.0,0.3608]
[1733850306980,0.05247135,95601.0,95595.0,9.43e-05]
[1733850307279,0.35247135,95601.0,95595.0,9.43e-05]
[1733850308078,0.35247135,95601.0,95595.0,3e-07]
[1733850308278,0.052284,95596.0,95595.0,3e-07]
[1733850308476,0.052344,95596.0,95595.0,3e-07]
[1733850308677,0.352344,95596.0,95595.0,3e-07]
[1733850308977,0.052295,95576.0,95524.0,0.052323]
[1733850309285,0.052318,95534.0,95532.0,0.05295306]
[1733850309785,0.052322,95527.0,95511.0,0.3608]
[1733850309983,0.413122,95527.0,95526.0,0.00010903]
[1733850310185,0.052332,95508.0,95504.0,0.3953]
[1733850310484,0.052332,95508.0,95507.0,0.18851006]
[1733850310792,0.3608,95512.0,95507.0,0.18851006]
[1733850310976,0.052322,95526.0,95511.0,0.18851006]
[1733850311290,0.3608,95527.0,95523.0,0.18851006]
[1733850311473,0.3608,95527.0,95512.0,9.441e-05]
[1733850311474,0.052329,95513.0,95512.0,9.441e-05]
[1733850311677,0.413129,95513.0,95512.0,9.441e-05]
[1733850311888,0.413129,95513.0,95461.0,0.01572]
[1733850311889,0.713129,95513.0,95500.0,4.1e-07]
[1733850312072,0.413136,95501.0,95500.0,4.1e-07]
[1733850312276,0.413136,95501.0,95444.0,0.3608]
[1733850312277,0.36086,95501.0,95444.0,0.3608]
[1733850312478,0.052361,95456.0,95444.0,0.3608]
[1733850312677,0.3608,95463.0,95432.0,0.3608]
[1733850312678,6e-05,95445.0,95432.0,0.3608]
[1733850312883,6e-05,95445.0,95444.0,0.18851006]
[1733850313084,0.052368,95444.0,95433.0,0.00013016]
[1733850313290,0.052369,95442.0,95436.0,0.18851006]
[1733850313489,0.3608,95449.0,95433.0,0.00013016]
[1733850313700,0.052372,95435.0,95434.0,0.18851006]
[1733850313887,0.3608,95437.0,95436.0,0.18851006]
[1733850314082,0.052342,95491.0,95436.0,0.18851006]
[1733850314083,0.3608,95470.0,95445.0,0.052366]
[1733850314285,0.3608,95470.0,95444.0,0.3608]
[1733850314286,0.052363,95452.0,95444.0,0.3608]
[1733850314488,0.3608,95460.0,95444.0,0.3608]
[1733850314784,0.3608,95460.0,95459.0,0.18852641]
[1733850314978,0.413153,95470.0,95459.0,0.18852641]
[1733850315189,0.05243158,95460.0,95459.0,0.00012]
[1733850315388,0.052365,95447.0,95443.0,0.3608]
[1733850315583,0.05236,95458.0,95447.0,0.18840641]
[1733850315779,0.3608,95455.0,95453.0,0.18840641]
[1733850316086,7.358e-05,95460.0,95443.0,0.3608]
[1733850316292,0.3608,95448.0,95436.0,0.00012]
[1733850316483,0.41317,95439.0,95436.0,0.00012]
[1733850317198,0.3608,95448.0,95438.0,0.18840641]
[1733850317383,0.3608,95448.0,95444.0,0.18840641]
[1733850317578,0.3608,95448.0,95445.0,0.18840641]
[1733850317786,0.3608,95448.0,95444.0,0.18840641]
[1733850317983,0.052365,95447.0,95444.0,0.18840641]
[1733850318184,0.052365,95447.0,95436.0,0.00012]
[1733850318185,0.052371,95437.0,95436.0,0.00012]
[1733850318393,6e-05,95445.0,95436.0,0.00012]
[1733850318694,6e-05,95445.0,95444.0,0.18852641]
[1733850318889,0.3608,95476.0,95459.0,0.18833283]
[1733850319100,0.3608,95487.0,95444.0,0.00012]
[1733850319101,0.3608,95487.0,95465.0,0.18833283]
[1733850319284,0.05235,95476.0,95475.0,0.00012]
[1733850319487,0.41315,95476.0,95471.0,0.18833283]
[1733850319684,0.05235,95476.0,95471.0,0.18833283]
[1733850319885,0.05235,95476.0,95475.0,0.18833283]
[1733850320094,0.05248514,95476.0,95475.0,0.18833283]
[1733850320489,0.00013514,95476.0,95475.0,0.54913283]
[1733850320997,0.00013514,95476.0,95475.0,0.21535583]
[1733850321294,0.36093514,95476.0,95447.0,0.41417662]
[1733850321486,0.00013514,95476.0,95447.0,0.41417662]
[1733850321680,0.3608,95496.0,95473.0,0.3608]
[1733850322390,0.3608,95503.0,95488.0,0.3608]
[1733850322583,0.3608,95489.0,95457.0,0.3608]
[1733850322806,0.052352,95473.0,95457.0,0.3608]
[1733850323095,8.499e-05,95480.0,95449.0,0.00205]
[1733850323096,0.052365,95450.0,95449.0,0.00205]
[1733850323297,0.413165,95450.0,95449.0,0.00205]
[1733850323497,0.713225,95450.0,95449.0,0.00205]
[1733850323685,0.413225,95450.0,95449.0,0.00205]
[1733850323885,0.713225,95450.0,95449.0,0.00205]
[1733850324384,0.052372,95437.0,95401.0,0.052391]
[1733850324689,0.052372,95437.0,95406.0,0.05290289]
[1733850324690,0.413232,95437.0,95406.0,0.05290289]
[1733850324891,0.413232,95437.0,95410.0,0.052386]
[1733850325195,6e-05,95437.0,95435.0,0.052372]
[1733850325783,6e-05,95437.0,95434.0,0.05150506]
[1733850326085,6e-05,95437.0,95402.0,0.38184178]
[1733850326086,0.413232,95437.0,95407.0,0.052388]
[1733850326291,0.413232,95437.0,95402.0,0.02104178]
[1733850326487,0.413232,95437.0,95424.0,0.052378]
[1733850326696,0.413232,95437.0,95426.0,0.052377]
[1733850326697,0.36086,95437.0,95426.0,0.052377]
[1733850326885,0.36086,95437.0,95429.0,0.052375]
[1733850327091,0.3608,95453.0,95429.0,0.3608]
[1733850327285,0.3608,95453.0,95448.0,0.052365]
[1733850327484,0.3608,95453.0,95452.0,0.00012]
[1733850327692,0.3608,95453.0,95452.0,0.00023516]
[1733850330194,0.413163,95453.0,95452.0,0.00023516]
[1733850330499,0.3608,95482.0,95452.0,0.30023516]
[1733850330699,0.3608,95472.0,95460.0,0.32926361]
[1733850330904,0.3608,95482.0,95470.0,0.052353]
[1733850331094,0.15396558,95503.0,95477.0,0.3608]
[1733850331291,0.052324,95523.0,95494.0,0.3608]
[1733850331497,0.42897866,95533.0,95494.0,0.41314]
[1733850331498,0.27501308,95533.0,95494.0,0.41314]
[1733850331692,0.3608,95518.0,95494.0,0.3608]
[1733850331894,0.3608,95501.0,95466.0,0.02140315]
[1733850332102,0.32926361,95510.0,95466.0,0.02140315]
[1733850332103,0.3608,95478.0,95477.0,0.00010581]
[1733850332292,0.36090547,95478.0,95477.0,0.00010581]
[1733850333005,0.00010547,95478.0,95477.0,0.00010581]
[1733850335016,0.052337,95501.0,95479.0,0.052348]
[1733850335217,0.413139,95498.0,95477.0,0.00010581]
[1733850335421,0.3608,95508.0,95488.0,0.3608]
[1733850335920,8.166e-05,95507.0,95488.0,0.3608]
[1733850336124,0.3608,95489.0,95477.0,0.00010581]
[1733850336316,0.413149,95478.0,95477.0,0.00010581]
[1733850336511,0.413209,95478.0,95477.0,0.00010581]
[1733850337319,0.36086,95478.0,95477.0,0.00010581]
[1733850337522,0.413209,95478.0,95477.0,0.00010581]
[1733850339923,0.413209,95478.0,95435.0,0.052372]
[1733850339924,0.81482558,95478.0,95435.0,0.052372]
[1733850340123,0.3608,95450.0,95437.0,0.052372]
[1733850340625,0.3608,95438.0,95436.0,0.05155348]
[1733850340827,0.3608,95438.0,95420.0,0.052381]
[1733850340828,0.052374,95433.0,95420.0,0.052381]
[1733850341043,0.052375,95432.0,95431.0,8.858e-05]
[1733850341233,0.00012235,95437.0,95431.0,8.858e-05]
[1733850341527,0.00012235,95437.0,95436.0,0.052492]
[1733850341721,0.09363467,95449.0,95436.0,0.052492]
[1733850341918,0.1828591,95475.0,95436.0,0.052492]
[1733850341919,0.09363467,95455.0,95444.0,0.3608]
[1733850342117,0.09363467,95454.0,95452.0,0.3608]
[1733850342319,0.3608,95453.0,95437.0,0.052372]
[1733850342518,0.14599667,95455.0,95438.0,0.052371]
[1733850342519,0.09363467,95454.0,95438.0,0.052371]
[1733850342714,0.052362,95455.0,95438.0,0.052371]
[1733850342920,0.052362,95455.0,95453.0,0.00012]
[1733850343429,0.3608,95454.0,95453.0,0.00012]
[1733850343927,0.45442421,95454.0,95453.0,0.00012]
[1733850344731,0.09362421,95454.0,95453.0,0.052483]
[1733850344927,0.09362421,95454.0,95453.0,0.00012]
[1733850345227,0.052362,95455.0,95453.0,0.00012]
[1733850345621,0.052362,95455.0,95454.0,0.00012]
[1733850346025,0.352362,95455.0,95454.0,0.00012]
[1733850346226,0.052374,95434.0,95431.0,8.858e-05]
[1733850346531,0.052363,95453.0,95431.0,0.04242275]
[1733850346532,0.3608,95432.0,95431.0,0.04242275]
[1733850346731,0.3608,95432.0,95431.0,8.858e-05]
[1733850347034,0.3608,95432.0,95431.0,0.05246358]
[1733850347236,0.3608,95449.0,95438.0,0.052371]
[1733850347420,0.09361232,95456.0,95431.0,8.858e-05]
[1733850347421,0.45441232,95456.0,95431.0,8.858e-05]
[1733850347621,0.45441232,95456.0,95448.0,0.00012]
[1733850347622,0.052365,95449.0,95448.0,0.00012]
[1733850349343,0.72292,95456.0,95448.0,0.00012]
[1733850349525,0.7216,95456.0,95448.0,0.00012]
[1733850349726,0.7216,95456.0,95455.0,0.00012]
[1733850350631,0.3608,95456.0,95455.0,0.00012]
[1733850351734,0.1560458,95457.0,95455.0,0.00012]
[1733850352039,0.1560458,95457.0,95448.0,0.04230682]
[1733850352040,8.104e-05,95459.0,95456.0,0.00012]
[1733850352224,8.104e-05,95459.0,95457.0,0.052361]
[1733850352424,8.104e-05,95459.0,95458.0,0.00012]
[1733850352624,0.3608,95488.0,95458.0,0.36092]
[1733850352836,0.052347,95482.0,95466.0,0.3608]
[1733850353237,0.3608,95476.0,95466.0,0.3608]
[1733850354038,0.3608,95476.0,95461.0,0.24959009]
[1733850354336,0.05243283,95486.0,95448.0,0.38218102]
[1733850354337,0.3608,95468.0,95448.0,0.31210761]
[1733850354530,0.3608,95459.0,95448.0,0.31210761]
[1733850354725,0.3608,95456.0,95448.0,0.00012]
[1733850355128,0.413155,95468.0,95450.0,0.052364]
[1733850355328,0.052355,95467.0,95450.0,0.052364]
[1733850355527,0.052355,95467.0,95451.0,0.24963687]
[1733850355736,0.3608,95460.0,95452.0,0.24953863]
[1733850355935,0.3608,95460.0,95448.0,0.04100354]
[1733850355936,0.052362,95455.0,95448.0,0.04100354]
[1733850356341,0.3608,95450.0,95448.0,0.04100354]
[1733850356533,0.052365,95449.0,95448.0,0.04100354]
[1733850357733,0.3608,95450.0,95448.0,0.04100354]
[1733850358130,0.3608,95450.0,95449.0,0.00012]
[1733850359433,0.3608,95450.0,95448.0,0.04100354]
[1733850359434,0.6608,95450.0,95448.0,0.00012]
[1733850359628,0.6608,95450.0,95431.0,8.858e-05]
[1733850359629,0.052374,95432.0,95431.0,8.858e-05]
[1733850359826,0.773974,95432.0,95431.0,0.04206622]
[1733850360031,0.773974,95432.0,95431.0,8.858e-05]
[1733850360428,1.073974,95432.0,95431.0,8.858e-05]
[1733850360636,0.773974,95432.0,95431.0,8.858e-05]
[1733850361539,1.073974,95432.0,95431.0,5.8e-07]
[1733850361935,1.073974,95432.0,95414.0,0.0004]
[1733850361936,1.0216,95432.0,95414.0,0.0004]
[1733850362134,0.773984,95415.0,95414.0,0.00031897]
[1733850362337,0.774044,95415.0,95414.0,0.00031897]
[1733850362641,0.052385,95412.0,95411.0,1e-06]
[1733850362843,0.05239,95404.0,95403.0,0.0419717]
[1733850363040,0.05239,95404.0,95400.0,0.1]
[1733850363041,0.052391,95401.0,95400.0,0.1]
[1733850363236,0.413191,95401.0,95400.0,0.1]
[1733850363440,0.413251,95401.0,95400.0,0.1]
[1733850363744,0.413251,95401.0,95361.0,0.31198761]
[1733850363745,0.052392,95400.0,95361.0,0.31198761]
[1733850363945,0.3608,95362.0,95361.0,0.31198761]
[1733850364248,0.36086,95362.0,95360.0,0.04270113]
[1733850364446,0.36086,95362.0,95359.0,0.052414]
[1733850364447,0.36086,95362.0,95361.0,0.08398132]
[1733850364742,0.3608,95372.0,95361.0,0.08409044]
[1733850364743,0.3608,95364.0,95361.0,0.08409044]
[1733850364950,0.052388,95407.0,95361.0,0.08409044]
[1733850364951,0.3608,95387.0,95361.0,0.00010912]
[1733850365140,0.3608,95387.0,95366.0,0.3608]
[1733850365340,0.3608,95387.0,95386.0,0.00012]
[1733850365541,0.05241,95367.0,95361.0,0.00010912]
[1733850365742,0.7216,95362.0,95361.0,0.00010912]
[1733850366046,0.774013,95362.0,95361.0,0.00010912]
[1733850366436,1.0216,95362.0,95331.0,0.3608]
[1733850366636,0.3608,95341.0,95319.0,0.43679824]
[1733850366834,0.36086,95341.0,95319.0,0.43679824]
[1733850367155,0.36086,95341.0,95340.0,0.29061958]
[1733850367449,0.36096884,95341.0,95340.0,0.29061958]
[1733850367639,0.66096884,95341.0,95340.0,0.29061958]
[1733850367838,0.052425,95340.0,95339.0,8.4e-07]
[1733850368042,0.052427,95336.0,95329.0,0.00010308]
[1733850368346,0.052487,95336.0,95329.0,0.00010308]
[1733850368534,0.052487,95336.0,95329.0,0.0695954]
[1733850368737,6e-05,95336.0,95334.0,0.052428]
[1733850368945,6e-05,95336.0,95329.0,0.0171644]
[1733850369251,0.052417,95337.0,95329.0,0.00010308]
[1733850369745,0.052417,95337.0,95336.0,0.00012]
[1733850370147,0.052417,95337.0,95329.0,0.00010308]
[1733850370148,0.352417,95337.0,95335.0,0.26558256]
[1733850370349,0.352417,95337.0,95300.0,0.1]
[1733850370350,0.052446,95301.0,95300.0,0.1]
[1733850370649,0.413246,95301.0,95300.0,0.1]
[1733850371336,0.413246,95301.0,95300.0,0.14283578]
[1733850371543,0.3608,95301.0,95298.0,0.00250117]
[1733850371739,0.00840001,95300.0,95170.0,0.3608]
[1733850371939,0.052509,95188.0,95123.0,0.052544]
[1733850372141,0.01,95211.0,95093.0,0.3750647]
[1733850372142,0.2608,95100.0,95093.0,0.3750647]
[1733850372444,0.36086,95094.0,95093.0,0.04159392]
[1733850372643,0.36086,95094.0,95093.0,0.02086884]
[1733850372844,0.36086,95094.0,95090.0,0.02091443]
[1733850372845,0.774221,95094.0,95090.0,0.02091443]
[1733850373151,0.7216,95094.0,95093.0,0.33060064]
[1733850373343,0.41790269,95094.0,95093.0,0.33060064]
[1733850373541,1.12311031,95094.0,95093.0,0.33060064]
[1733850373846,0.77870269,95094.0,95093.0,0.76372647]
[1733850374050,0.75601074,95094.0,95093.0,0.76372647]
[1733850374246,0.80857174,95094.0,95093.0,8.934e-05]
[1733850374446,0.72750837,95094.0,95093.0,8.934e-05]
[1733850374646,0.72750837,95094.0,95074.0,0.04260503]
[1733850374647,0.3608,95081.0,95074.0,0.04260503]
[1733850374842,0.052572,95074.0,95070.0,0.33060064]
[1733850375038,0.052573,95071.0,95070.0,0.33060064]
[1733850375243,0.3608,95075.0,95060.0,0.02069207]
[1733850375244,0.04299473,95061.0,95060.0,0.02069207]
[1733850375540,0.36079993,95053.0,95031.0,0.0039]
[1733850375754,0.36086,95061.0,95031.0,0.0039]
[1733850375755,0.7216,95032.0,95031.0,0.0039]
[1733850376051,0.72166,95032.0,95031.0,0.45759184]
[1733850376352,0.71782629,95032.0,95031.0,0.4370571]
[1733850376545,0.71782629,95032.0,95031.0,0.00402061]
[1733850376747,0.71782629,95032.0,95000.0,0.1]
[1733850377058,0.72166,95001.0,94960.0,0.26785663]
[1733850377354,0.3608,94975.0,94960.0,1.00089312]
[1733850377653,0.28862351,95017.0,94974.0,0.3608]
[1733850377860,0.26785663,95080.0,95026.0,0.3608]
[1733850378047,0.26785663,95080.0,95076.0,0.3608]
[1733850378249,0.05258,95057.0,95050.0,0.3608]
[1733850378749,6e-05,95051.0,95050.0,0.3608]
[1733850378954,0.3608,95082.0,95050.0,0.3608]
[1733850378955,0.26785663,95110.0,95062.0,0.36071583]
[1733850379149,0.26785663,95110.0,95050.0,0.6608]
[1733850379150,0.052552,95108.0,95083.0,0.7216]
[1733850379352,0.1092663,95084.0,95083.0,0.72172]
[1733850379656,0.1092663,95084.0,95051.0,0.3941]
[1733850379657,0.3608,95074.0,95021.0,0.3034]
[1733850379864,0.78441992,95084.0,94970.0,0.3608]
[1733850379865,0.3608,95037.0,94970.0,0.3608]
[1733850380151,0.26785663,94980.0,94970.0,0.3608]
[1733850380356,0.26785663,94980.0,94891.0,0.052672]
[1733850380357,0.3608,94971.0,94936.0,0.3608]
[1733850380652,0.3608,94971.0,94921.0,0.3608]
[1733850380653,6e-05,94937.0,94921.0,0.3608]
[1733850380854,7.732e-05,94934.0,94933.0,9.961e-05]
[1733850381057,7.732e-05,94934.0,94933.0,0.36089961]
[1733850381254,0.3608,94979.0,94933.0,0.66089961]
[1733850381559,0.3608,94991.0,94978.0,0.00012]
[1733850381758,0.3608,94979.0,94933.0,9.961e-05]
[1733850382052,0.33274135,94950.0,94933.0,9.961e-05]
[1733850382256,0.02141587,94979.0,94945.0,0.7216]
[1733850382257,0.3608,94978.0,94945.0,0.7216]
[1733850382459,0.38155708,94946.0,94908.0,0.3608]
[1733850382758,0.33274135,94920.0,94917.0,0.29356064]
[1733850382961,0.33274135,94940.0,94919.0,0.29356064]
[1733850383254,0.00010143,94943.0,94941.0,0.29356064]
[1733850383457,0.00010143,94943.0,94926.0,0.3608]
[1733850383642,0.00010143,94943.0,94942.0,0.00012]
[1733850383850,0.66090143,94943.0,94920.0,0.00012517]
[1733850384048,0.3608,94921.0,94920.0,0.00012517]
[1733850384347,0.36073,94921.0,94920.0,0.00012517]
[1733850384860,0.3608,94937.0,94920.0,0.29368581]
[1733850385165,0.3608,94937.0,94920.0,0.00012517]
[1733850385347,0.3608,94975.0,94942.0,0.29356064]
[1733850385549,0.00526459,94974.0,94961.0,0.3608]
[1733850385748,0.3608,95004.0,94984.0,0.05262]
[1733850385951,0.3608,95005.0,95003.0,0.2933218]
[1733850386149,0.3608,95005.0,95003.0,0.00012]
[1733850386450,0.39633169,95067.0,94981.0,0.3608]
[1733850386451,0.3608,95018.0,95004.0,0.3460508]
[1733850386651,0.45336,95100.0,95032.0,0.2933218]
[1733850386652,0.3608,95043.0,95032.0,0.2933218]
[1733850386860,0.3608,95034.0,95009.0,0.3608]
[1733850387248,0.3608,95043.0,95023.0,0.052598]
[1733850387451,0.3608,95043.0,95026.0,0.052596]
[1733850387655,0.3,95043.0,95042.0,0.00012]
[1733850387967,0.72169937,95043.0,95042.0,0.00012]
[1733850388263,0.74231744,95043.0,95042.0,0.00012]
[1733850388457,0.72169937,95043.0,95042.0,0.00012]
[1733850389062,1.02169937,95043.0,95010.0,0.4263]
[1733850389256,0.3608,95023.0,95020.0,0.0526]
[1733850389453,9.937e-05,95043.0,95020.0,0.3608]
[1733850389655,9.937e-05,95043.0,95033.0,0.052593]
[1733850389960,9.937e-05,95043.0,95042.0,0.00012]
[1733850390158,0.36089937,95043.0,95042.0,8e-05]
[1733850390359,9.937e-05,95043.0,95042.0,8e-05]
[1733850390865,0.3608,95065.0,95042.0,0.32141712]
[1733850391057,0.3608,95083.0,95053.0,0.3608]
[1733850391250,0.3608,95083.0,95072.0,0.052571]
[1733850391447,0.09779432,95095.0,95082.0,0.36092]
[1733850391660,0.3608,95090.0,95082.0,0.00012]
[1733850391957,0.3608,95090.0,95082.0,0.00019835]
[1733850391958,0.00012745,95089.0,95082.0,0.00019835]
[1733850392347,0.35268945,95089.0,95088.0,0.02078796]
[1733850392749,0.35268945,95089.0,95082.0,0.00019835]
[1733850392949,0.3608,95088.0,95082.0,0.00019835]
[1733850393156,6e-05,95083.0,95082.0,0.00019835]
[1733850393752,0.00012745,95089.0,95088.0,0.052562]
[1733850393954,0.3608,95106.0,95099.0,0.052556]
[1733850394156,0.3608,95106.0,95082.0,0.00019835]
[1733850394357,0.3608,95083.0,95082.0,0.00019835]
[1733850394560,0.36086,95083.0,95082.0,0.00019835]
[1733850394964,0.36086,95083.0,95066.0,0.0209121]
[1733850394965,0.3609868,95083.0,95066.0,0.0209121]
[1733850395261,0.3608,95070.0,95067.0,0.052574]
[1733850395462,0.0001268,95083.0,95080.0,0.052527]
[1733850395663,0.0001268,95083.0,95082.0,0.3608]
[1733850395962,0.0001268,95083.0,95063.0,0.3608]
[1733850395963,0.0001268,95083.0,95074.0,0.00011378]
[1733850396163,0.3608,95077.0,95074.0,0.00011378]
[1733850396365,0.3608,95077.0,95052.0,0.04149176]
[1733850396662,6e-05,95060.0,95040.0,0.69354135]
[1733850396862,6e-05,95060.0,95020.0,0.69354135]
[1733850397052,0.3608,95039.0,95038.0,0.40607]
[1733850397256,0.00156001,95066.0,95038.0,0.71428]
[1733850397459,0.3608,95080.0,95079.0,0.052568]
[1733850397765,0.3608,95082.0,95070.0,0.052573]
[1733850397964,0.3608,95090.0,95073.0,0.3608]
[1733850398159,0.3608,95112.0,95082.0,0.052566]
[1733850398656,0.3608,95112.0,95082.0,0.3608]
[1733850398861,0.3608,95095.0,95082.0,0.3608]
[1733850399561,0.3608,95083.0,95071.0,0.00013523]
[1733850399959,0.3608,95083.0,95076.0,0.052569]
[1733850400160,0.3608,95083.0,95071.0,0.00013523]
[1733850400455,6e-05,95072.0,95071.0,0.3]
[1733850400854,6e-05,95072.0,95071.0,0.352572]
[1733850401468,9.475e-05,95094.0,95084.0,0.052564]
[1733850401660,9.475e-05,95094.0,95085.0,0.3608]
[1733850401867,9.475e-05,95094.0,95093.0,0.00012]
[1733850402065,0.16821019,95094.0,95093.0,0.00012]
[1733850402458,0.06057037,95094.0,95093.0,0.00012]
[1733850402765,9.475e-05,95094.0,95093.0,0.00012]
[1733850403072,0.16821019,95094.0,95093.0,0.00012]
[1733850404167,9.475e-05,95094.0,95093.0,0.00012]
[1733850405666,9.475e-05,95094.0,95093.0,0.36092]
[1733850406263,0.16821019,95094.0,95071.0,0.00013148]
[1733850406468,0.16821019,95094.0,95023.0,0.03408011]
[1733850406469,0.3608,95043.0,95023.0,0.03408011]
[1733850406679,0.052603,95016.0,94979.0,0.3608]
[1733850406864,0.2700223,95033.0,94979.0,0.3608]
[1733850406865,0.2700223,94989.0,94979.0,0.3608]
[1733850407064,6e-05,94980.0,94973.0,0.02102666]
[1733850407365,0.36086,94974.0,94946.0,0.02141573]
[1733850407566,0.36086,94974.0,94924.0,0.3608]
[1733850407567,0.3608,94947.0,94924.0,0.3608]
[1733850407766,0.2700223,94940.0,94924.0,0.3608]
[1733850407973,0.12236733,94952.0,94933.0,0.7216]
[1733850408174,0.15350551,94960.0,94959.0,0.052634]
[1733850408476,0.00013544,94992.0,94974.0,0.052626]
[1733850408666,0.00013544,94992.0,94991.0,0.052616]
[1733850408868,0.00013544,94992.0,94982.0,0.2700223]
[1733850409070,0.00013544,94992.0,94974.0,0.36092]
[1733850409273,6e-05,94983.0,94974.0,0.36092]
[1733850409572,6e-05,94975.0,94974.0,0.00012]
[1733850409763,6e-05,94975.0,94974.0,0.36092]
[1733850409966,6e-05,94975.0,94974.0,0.00012]
[1733850410171,0.36086,94975.0,94974.0,0.00012]
[1733850410375,6e-05,94975.0,94974.0,0.3]
[1733850410562,0.00013544,94992.0,94991.0,0.052616]
[1733850410767,0.00013544,94992.0,94983.0,0.3608]
[1733850410961,0.00013544,94992.0,94974.0,0.3608]